bitfinex/quotes_ETHUSD_20250725
["timestamp","ask_amount","ask_price","bid_price","bid_amount"]
[1753404523357,4.538,3658.7,3658.2,0.8313]
[1753404523660,2.73328906,3658.6,3658.1,0.04]
[1753404523874,4.538,3658.7,3658.1,0.5502]
[1753404524073,2.73319555,3658.8,3658.1,0.5502]
[1753404524289,4.537,3658.7,3658.1,0.04]
[1753404524581,2.73337845,3658.5,3658.1,0.04]
[1753404524888,4.537,3658.4,3658.1,0.04]
[1753404525061,2.73358482,3658.2,3658.1,0.04]
[1753404525387,5.0069,3658.4,3658.1,0.04]
[1753404525550,7.74034251,3658.4,3658.1,0.04]
[1753404525753,4.537,3658.4,3658.1,0.04]
[1753404526000,4.537,3658.4,3658.2,0.4758]
[1753404526282,4.6738,3658.4,3658.1,0.04]
[1753404526484,4.537,3658.3,3658.2,3.20937532]
[1753404526706,4.537,3658.3,3658.2,3.20938482]
[1753404526854,4.537,3658.3,3658.2,0.4758]
[1753404527184,4.537,3658.3,3658.1,0.1768]
[1753404527750,5.0077,3658.3,3658.1,0.04]
[1753404527948,5.1445,3658.3,3658.1,0.04]
[1753404528294,4.6738,3658.3,3658.1,0.04]
[1753404528791,7.40731959,3658.3,3658.1,0.04]
[1753404529290,2.73358482,3658.2,3658.1,0.04]
[1753404529665,0.4707,3658.7,3658.1,0.04]
[1753404529666,0.4707,3659.5,3658.1,0.5158]
[1753404529867,0.1368,3659.1,3658.2,0.84863584]
[1753404530092,4.535,3659.0,3658.7,2.73314017]
[1753404530291,2.73231509,3659.9,3659.0,3.55427312]
[1753404530590,0.1368,3659.6,3659.2,2.73280839]
[1753404530809,0.1368,3659.6,3659.2,2.73278541]
[1753404531108,4.534,3659.5,3659.3,0.4758]
[1753404531266,4.534,3659.5,3659.1,2.86970196]
[1753404531453,4.534,3659.5,3659.2,0.4758]
[1753404531649,2.73277651,3659.3,3659.1,0.1368]
[1753404531863,4.6708,3659.2,3658.7,0.1368]
[1753404532093,5.456,3659.2,3658.7,0.1368]
[1753404532293,4.6708,3659.2,3658.7,0.1368]
[1753404532482,5.6118,3659.2,3658.7,0.1368]
[1753404532682,0.941,3659.1,3658.7,0.1368]
[1753404532868,0.1368,3658.9,3658.3,0.6126]
[1753404533068,4.533,3658.8,3658.5,5.87015587]
[1753404533268,4.533,3658.8,3658.6,0.4758]
[1753404533484,4.533,3658.8,3658.5,5.87015587]
[1753404533681,4.533,3658.8,3658.7,2.73321124]
[1753404533872,4.533,3658.8,3658.7,4.57561124]
[1753404534194,4.533,3658.8,3658.7,4.57559525]
[1753404534399,4.533,3659.0,3658.7,4.57559525]
[1753404534690,4.533,3659.0,3658.2,0.7718]
[1753404534898,2.73307773,3658.9,3658.5,0.1368]
[1753404535091,0.74028777,3658.8,3658.5,0.1368]
[1753404535301,2.73345024,3658.4,3658.2,0.7718]
[1753404535512,4.532,3658.4,3658.2,1.2476]
[1753404535667,4.532,3658.4,3658.3,0.1368]
[1753404536069,4.532,3658.4,3658.2,0.7718]
[1753404536269,4.532,3658.4,3658.2,1.2476]
[1753404536907,4.532,3658.4,3658.3,3.2093101]
[1753404537109,4.531,3658.5,3658.4,2.73342934]
[1753404537310,0.1368,3659.0,3658.4,0.9338]
[1753404537510,4.531,3658.9,3658.5,3.20916066]
[1753404537719,4.531,3658.9,3658.6,0.4758]
[1753404537916,4.531,3658.9,3658.5,3.19136066]
[1753404538216,4.531,3658.9,3658.7,0.4758]
[1753404538579,4.531,3658.9,3658.8,0.4758]
[1753404538781,2.73245279,3659.8,3659.0,2.73297533]
[1753404539079,0.32026392,3659.8,3658.9,0.8312]
[1753404539279,7.26251393,3659.7,3659.0,3.20877597]
[1753404539519,7.9312,3660.5,3659.1,0.02732912]
[1753404539718,0.04,3660.9,3660.1,0.8332]
[1753404540013,0.04,3660.9,3660.2,0.9338]
[1753404540014,4.53,3660.8,3660.2,0.9338]
[1753404540172,4.53,3660.8,3660.2,0.4758]
[1753404540809,4.53,3660.8,3660.1,0.8332]
[1753404540810,5.03403,3660.8,3660.1,0.8332]
[1753404541200,5.03403,3660.8,3660.2,2.73208058]
[1753404541415,4.53,3660.8,3660.2,2.73208058]
[1753404541615,4.53,3660.8,3660.1,1.309]
[1753404541616,2.73171797,3660.7,3660.1,0.8332]
[1753404541817,5.471,3660.8,3659.7,0.4758]
[1753404541818,2.73198449,3660.4,3659.7,4.04140753]
[1753404542115,4.529,3660.4,3659.8,3.0]
[1753404542417,0.7813,3659.9,3658.7,0.8332]
[1753404542624,0.941,3659.8,3658.3,0.4758]
[1753404542830,4.528,3659.7,3658.3,0.4758]
[1753404543034,2.73290923,3659.2,3658.4,5.73342024]
[1753404543192,4.528,3659.1,3658.6,5.73323481]
[1753404543401,4.528,3659.0,3658.7,0.4758]
[1753404543825,4.528,3659.0,3658.6,3.0]
[1753404544038,2.7330701,3658.9,3658.3,3.4758]
[1753404544241,4.528,3659.0,3658.3,3.4758]
[1753404544734,2.73313702,3658.8,3658.3,3.4758]
[1753404544899,2.73313702,3658.8,3658.3,0.4758]
[1753404545509,0.941,3658.8,3658.2,0.8332]
[1753404545714,2.73330689,3658.6,3658.1,0.04]
[1753404545923,4.527,3658.5,3658.1,0.04]
[1753404546306,4.527,3658.5,3658.2,0.4758]
[1753404546510,4.527,3658.5,3658.1,0.04]
[1753404546754,0.4527,3658.4,3658.1,0.04]
[1753404546949,3.18615438,3658.4,3658.1,0.04]
[1753404547411,3.32295438,3658.4,3658.1,0.04]
[1753404548054,0.5895,3658.4,3658.1,0.04]
[1753404548241,2.73352023,3658.3,3658.1,0.04]
[1753404548551,2.73358482,3658.2,3658.1,0.04]
[1753404548748,2.73352973,3658.3,3658.1,0.04]
[1753404548953,2.73358482,3658.2,3658.1,0.04]
[1753404549113,4.526,3658.2,3658.1,0.04]
[1753404549625,7.25958482,3658.2,3658.1,0.04]
[1753404549823,9.21356686,3658.2,3658.1,0.04]
[1753404550014,9.35036686,3658.2,3658.1,0.04]
[1753404550231,10.12776686,3658.2,3658.1,0.04]
[1753404553369,2.87038482,3658.2,3658.1,0.04]
[1753404553571,7.39538482,3658.2,3658.1,0.04]
[1753404554670,0.1368,3658.2,3658.1,0.04]
[1753404554969,0.72607185,3660.4,3658.1,0.5158]
[1753404554970,0.1368,3658.3,3658.1,0.5158]
[1753404555183,4.524,3658.2,3658.1,0.5158]
[1753404556054,4.524,3658.2,3658.1,0.04]
[1753404556432,0.1368,3658.3,3658.1,0.5391]
[1753404556662,0.1368,3658.6,3658.2,3.23268482]
[1753404556837,4.523,3658.5,3658.2,2.73358482]
[1753404557041,4.523,3658.5,3658.3,0.4991]
[1753404557460,4.523,3658.5,3658.4,0.4991]
[1753404557835,0.1368,3658.6,3658.4,0.4991]
[1753404558036,0.002,3659.1,3658.4,0.4991]
[1753404558037,0.002,3659.1,3658.8,2.73307652]
[1753404558236,4.523,3659.0,3658.6,0.7528]
[1753404558437,4.523,3659.0,3658.7,3.36911124]
[1753404558665,4.524,3659.1,3658.8,3.23218755]
[1753404558974,4.524,3659.1,3658.9,0.4991]
[1753404559141,4.524,3659.1,3658.8,0.4991]
[1753404559739,4.524,3659.1,3658.7,2.86996046]
[1753404559740,4.524,3659.1,3658.9,0.4991]
[1753404560881,6.73735725,3659.1,3658.1,0.8276]
[1753404561075,2.73339404,3658.5,3658.1,0.041]
[1753404561277,2.73358482,3658.2,3658.1,0.041]
[1753404561583,4.521,3658.2,3658.1,0.041]
[1753404562682,8.73922482,3658.2,3658.1,0.041]
[1753404564653,3.71702482,3658.2,3658.1,0.041]
[1753404564855,2.73418275,3657.4,3657.3,0.001]
[1753404565052,8.06218275,3657.4,3657.3,0.001]
[1753404565254,9.03398275,3657.4,3657.3,0.001]
[1753404565455,9.32055219,3657.4,3657.3,0.001]
[1753404566280,4.30035219,3657.4,3657.3,0.001]
[1753404566594,9.32055219,3657.4,3657.3,0.001]
[1753404567492,7.25218275,3657.4,3657.3,0.001]
[1753404567861,4.518,3657.4,3657.3,0.001]
[1753404568055,3.20449285,3657.8,3657.3,0.001]
[1753404568293,4.519,3657.7,3657.3,0.001]
[1753404568589,3.55481892,3657.9,3657.3,0.001]
[1753404568800,7.25188391,3657.8,3657.3,0.5001]
[1753404569090,4.518,3657.8,3657.3,0.001]
[1753404569290,2.73418275,3657.4,3657.3,0.001]
[1753404569492,7.25218275,3657.4,3657.3,0.001]
[1753404570363,8.22398275,3657.4,3657.3,0.001]
[1753404571259,7.25218275,3657.4,3657.3,0.001]
[1753404571489,4.518,3657.4,3657.3,0.001]
[1753404572096,7.72278275,3657.4,3657.3,0.001]
[1753404572396,7.9773957,3657.4,3657.3,0.001]
[1753404572598,8.9491957,3657.4,3657.3,0.001]
[1753404574873,9.0859957,3657.4,3657.3,0.001]
[1753404577711,0.1368,3657.4,3657.3,0.001]
[1753404577885,9.84767043,3658.1,3657.3,1.2948]
[1753404578093,0.1368,3657.8,3657.4,0.4991]
[1753404578290,4.514,3657.7,3657.3,0.1378]
[1753404578615,2.87098275,3657.4,3657.3,0.001]
[1753404578826,11.57674435,3657.4,3657.3,0.001]
[1753404578974,12.54854435,3657.4,3657.3,0.001]
[1753404581307,9.54654435,3657.4,3657.3,0.001]
[1753404581705,7.38298275,3657.4,3657.3,0.001]
[1753404582685,0.1368,3657.4,3657.3,0.001]
[1753404582902,7.38298275,3657.4,3657.3,0.001]
[1753404583422,8.35478275,3657.4,3657.3,0.001]
[1753404584132,7.38198275,3657.4,3657.3,0.001]
[1753404585002,2.87098275,3657.4,3657.3,0.001]
[1753404585198,7.38198275,3657.4,3657.3,0.001]
[1753404585746,4.6478,3657.4,3657.3,0.001]
[1753404585895,4.511,3657.4,3657.3,0.001]
[1753404586087,4.511,3657.4,3657.3,0.4961]
[1753404586524,7.24518275,3657.4,3657.3,0.4961]
[1753404586705,7.24518275,3657.4,3657.3,0.001]
[1753404587919,8.12618275,3657.4,3657.3,0.001]
[1753404588131,7.67368275,3657.4,3657.3,0.001]
[1753404588630,8.12618275,3657.4,3657.3,0.001]
[1753404589122,11.12618275,3657.4,3657.3,0.001]
[1753404589321,11.93608275,3657.4,3657.3,0.001]
[1753404589636,13.41677457,3657.4,3657.3,0.001]
[1753404591047,11.93608275,3657.4,3657.3,0.001]
[1753404591636,8.93608275,3657.4,3657.3,0.001]
[1753404592163,2.73433227,3657.2,3657.1,1e-08]
[1753404592445,7.37813227,3657.2,3657.1,1e-08]
[1753404592627,8.25913227,3657.2,3657.1,1e-08]
[1753404592829,4.93245377,3657.2,3657.1,1e-08]
[1753404593017,2.87113227,3657.2,3657.1,1e-08]
[1753404593206,7.37813227,3657.2,3657.1,1e-08]
[1753404593610,2.87113227,3657.2,3657.1,1e-08]
[1753404593823,7.37713227,3657.2,3657.1,0.49510001]
[1753404594124,7.37713227,3657.2,3657.1,1e-08]
[1753404594542,7.37713227,3657.2,3657.1,0.49510001]
[1753404595111,4.6428,3657.2,3657.1,1e-08]
[1753404595320,2.73426719,3657.3,3657.1,0.49510001]
[1753404595525,0.7526,3657.8,3657.2,0.4951]
[1753404595724,0.1368,3657.4,3657.2,0.4951]
[1753404596042,4.506,3657.3,3657.1,0.47450001]
[1753404596240,7.24026859,3657.3,3657.1,1e-08]
[1753404596445,4.506,3657.3,3657.1,1e-08]
[1753404596755,4.506,3657.3,3657.2,0.4951]
[1753404597616,7.24026581,3657.3,3657.1,1e-08]
[1753404597821,2.73433227,3657.2,3657.1,1e-08]
[1753404598223,7.24028548,3657.3,3657.1,1e-08]
[1753404599659,4.506,3657.3,3657.1,1e-08]
[1753404600235,4.506,3657.3,3657.1,0.49510001]
[1753404600562,4.506,3657.3,3657.2,0.4951]
[1753404600964,4.503,3657.3,3657.2,0.9696]
[1753404601167,4.503,3657.3,3657.2,1.1064]
[1753404601567,2.73433227,3657.2,3657.1,1e-08]
[1753404601745,7.37408474,3657.3,3657.1,1e-08]
[1753404602246,7.114,3658.1,3657.2,0.4951]
[1753404602247,2.73408502,3657.6,3657.2,0.4951]
[1753404602434,4.6388,3657.5,3657.2,0.4951]
[1753404602637,2.73433227,3657.2,3657.1,1e-08]
[1753404602949,7.37313227,3657.2,3657.1,0.00100001]
[1753404603259,9.70633695,3657.2,3657.1,0.00100001]
[1753404604769,7.37313227,3657.2,3657.1,0.00100001]
[1753404605064,8.25413227,3657.2,3657.1,0.00100001]
[1753404605974,7.37313227,3657.2,3657.1,0.00100001]
[1753404606133,2.87113227,3657.2,3657.1,0.00100001]
[1753404606339,4.6368,3657.2,3657.1,0.49610001]
[1753404606553,4.5,3657.2,3657.1,0.49610001]
[1753404606938,4.499,3657.2,3657.1,0.49610001]
[1753404608168,7.23333227,3657.2,3657.1,0.00100001]
[1753404608362,4.6358,3657.2,3657.1,0.00100001]
[1753404608566,4.6358,3657.2,3657.1,0.49610001]
[1753404608873,0.1368,3657.2,3657.1,0.49610001]
[1753404609060,4.6358,3657.2,3657.1,0.00100001]
[1753404609256,4.6358,3657.2,3657.1,0.49610001]
[1753404609650,4.499,3657.2,3657.1,0.49610001]
[1753404612051,0.1368,3657.4,3657.1,0.49610001]
[1753404612255,4.497,3657.2,3657.1,0.00100001]
[1753404612981,4.497,3657.2,3657.1,2.73540705]
[1753404613682,4.497,3657.2,3657.1,3.23050705]
[1753404614095,0.1368,3657.7,3657.3,2.73425751]
[1753404614247,4.495,3657.6,3657.4,0.9696]
[1753404614448,4.495,3657.6,3657.5,0.4951]
[1753404614645,4.495,3657.6,3657.3,2.73421351]
[1753404614999,4.495,3657.6,3657.5,2.73410799]
[1753404615280,4.495,3657.6,3657.5,3.22920799]
[1753404616545,0.1388,3657.9,3657.7,2.73391695]
[1753404616746,0.1388,3657.9,3657.6,0.945]
[1753404616956,4.494,3657.8,3657.6,0.945]
[1753404617163,4.494,3657.8,3657.7,0.4894]
[1753404617600,4.494,3657.8,3657.7,3.22335849]
[1753404617800,4.495,3657.9,3657.7,1.87324515]
[1753404617956,4.495,3657.9,3657.7,1.2775]
[1753404618151,4.495,3657.9,3657.7,0.7881]
[1753404618352,4.495,3657.9,3657.3,1.292]
[1753404618663,0.002,3657.9,3657.8,3.53648375]
[1753404618859,0.002,3657.9,3657.8,5.10853579]
[1753404619059,0.002,3657.9,3657.8,5.13587462]
[1753404619270,0.002,3657.9,3657.8,5.10853579]
[1753404619502,0.002,3657.9,3657.3,3.50734579]
[1753404619646,4.492,3657.8,3657.4,0.4894]
[1753404619999,4.492,3657.8,3657.5,0.4894]
[1753404620295,4.492,3657.8,3657.5,3.67904745]
[1753404620517,4.492,3657.8,3657.5,0.4556]
[1753404620714,4.492,3657.8,3657.7,2.73395849]
[1753404620887,4.492,3657.8,3657.7,3.67895849]
[1753404621697,4.492,3657.8,3657.7,3.22335849]
[1753404622506,4.492,3657.8,3657.7,3.67895849]
[1753404623331,0.002,3657.9,3657.8,2.73388375]
[1753404623478,0.002,3657.9,3657.8,0.4894]
[1753404623674,0.002,3657.9,3657.1,0.00100001]
[1753404623675,1.4155,3657.9,3657.1,0.00100001]
[1753404623991,3.53673227,3657.2,3657.1,0.00100001]
[1753404624320,5.2914,3657.2,3657.1,0.00100001]
[1753404624622,2.73403811,3657.6,3657.1,0.00100001]
[1753404624623,4.489,3657.6,3657.2,0.7725]
[1753404624792,0.002,3657.9,3657.3,0.17185]
[1753404625123,4.489,3657.7,3657.3,3.67924567]
[1753404625273,4.489,3657.7,3657.4,3.22357996]
[1753404625493,4.489,3657.7,3657.5,0.4894]
[1753404625887,4.489,3657.7,3657.2,3.99620888]
[1753404626121,4.489,3657.7,3657.3,0.4894]
[1753404626591,6.1759834,3657.7,3657.1,0.00100001]
[1753404626798,0.1368,3657.4,3657.1,0.49040001]
[1753404627007,4.488,3657.3,3657.1,3.00100001]
[1753404627212,4.488,3657.3,3657.2,0.4894]
[1753404627601,4.488,3657.3,3657.2,3.36053227]
[1753404628524,4.488,3657.3,3657.2,0.6262]
[1753404629538,4.488,3657.3,3657.2,0.1368]
[1753404629824,4.488,3657.3,3657.2,0.6262]
[1753404630033,4.488,3657.3,3657.2,4.52953443]
[1753404630734,4.487,3657.6,3657.2,4.07393443]
[1753404630897,4.487,3657.6,3657.4,2.73415766]
[1753404631096,4.487,3657.6,3657.5,3.22350799]
[1753404631600,4.487,3657.6,3657.5,0.4894]
[1753404632134,4.487,3657.6,3657.5,3.22350799]
[1753404632697,4.487,3657.6,3657.5,0.4894]
[1753404633017,4.487,3657.6,3657.5,3.22350799]
[1753404633510,4.487,3657.6,3657.5,0.4894]
[1753404634021,4.487,3657.6,3657.4,2.87098229]
[1753404634329,4.487,3657.6,3657.5,2.73410799]
[1753404634632,4.487,3657.6,3657.5,3.22350799]
[1753404635394,4.487,3657.6,3657.5,3.67910799]
[1753404636114,4.487,3657.6,3657.5,3.22350799]
[1753404637797,4.487,3657.6,3657.5,3.8785242]
[1753404638131,0.002,3657.8,3657.6,3.54585939]
[1753404638330,0.002,3657.8,3657.6,4.49085939]
[1753404638534,0.002,3657.8,3657.7,2.73395849]
[1753404638696,0.002,3657.8,3657.7,3.67895849]
[1753404638899,0.002,3657.8,3657.7,7.48063452]
[1753404639635,0.002,3657.8,3657.7,6.53563452]
[1753404639820,0.002,3657.8,3657.7,7.02503452]
[1753404640022,0.002,3657.8,3657.7,7.48063452]
[1753404640199,0.002,3657.8,3657.7,8.03063452]
[1753404640400,0.002,3657.8,3657.7,6.53563452]
[1753404640604,0.002,3657.8,3657.7,3.0]
[1753404641146,2.73433227,3657.2,3657.1,0.00100001]
[1753404641440,9.08043227,3657.2,3657.1,0.00100001]
[1753404642407,5.3818,3657.2,3657.1,0.00100001]
[1753404642608,5.8554,3657.2,3657.1,0.00100001]
[1753404642807,5.3818,3657.2,3657.1,0.00100001]
[1753404643013,8.94363227,3657.2,3657.1,0.00100001]
[1753404643245,6.2093,3657.2,3657.1,0.00100001]
[1753404644349,0.002,3657.8,3657.7,2.73395849]
[1753404644554,0.002,3657.8,3657.6,0.1368]
[1753404644847,5.4487,3657.7,3657.2,2.73433198]
[1753404645012,5.4487,3657.7,3657.2,3.0]
[1753404645212,0.9643,3657.6,3657.1,0.00100001]
[1753404645437,0.1368,3657.2,3657.1,0.00100001]
[1753404645641,4.6168,3657.2,3657.1,0.00100001]
[1753404645924,5.5076,3657.2,3657.1,0.00100001]
[1753404647168,4.6158,3657.2,3657.1,0.00100001]
[1753404647526,0.8319,3657.7,3657.1,0.00100001]
[1753404647836,0.002,3657.8,3657.1,0.00100001]
[1753404647837,0.1368,3657.5,3657.1,3.20169501]
[1753404648051,0.1368,3657.5,3657.2,0.4663]
[1753404650620,4.479,3657.6,3657.1,0.00100001]
[1753404650826,4.6158,3657.6,3657.2,0.4663]
[1753404651150,4.6158,3657.6,3657.3,3.20051635]
[1753404651371,0.1368,3657.6,3657.4,2.73416005]
[1753404651524,4.6138,3657.6,3657.4,3.20046005]
[1753404651755,4.6138,3657.6,3657.4,0.4663]
[1753404652799,4.9129,3657.6,3657.1,0.13780001]
[1753404653112,5.3678,3657.6,3657.1,5.87219042]
[1753404653610,4.477,3657.6,3657.2,2.7343146]
[1753404653773,4.477,3657.6,3657.2,3.2006146]
[1753404653979,4.477,3657.6,3657.3,2.73424098]
[1753404654289,4.477,3657.6,3657.3,3.20054098]
[1753404654664,2.73433227,3657.2,3657.1,0.00100001]
[1753404654863,8.07882377,3657.2,3657.1,0.00100001]
[1753404655183,8.96962377,3657.2,3657.1,0.00100001]
[1753404655673,8.23693227,3657.2,3657.1,0.00100001]
[1753404659810,9.06643227,3657.2,3657.1,0.00100001]
[1753404665492,4.59143227,3657.2,3657.1,0.00100001]
[1753404665711,8.60753227,3657.2,3657.1,0.00100001]
[1753404666016,0.1368,3657.2,3657.1,0.00100001]
[1753404666190,4.6078,3657.2,3657.1,0.00100001]
[1753404666394,8.20076312,3657.2,3657.1,0.00100001]
[1753404666606,8.63666312,3657.2,3657.1,0.00100001]
[1753404666808,9.09156312,3657.2,3657.1,0.00100001]
[1753404667514,4.62056312,3657.2,3657.1,0.00100001]
[1753404667811,9.09156312,3657.2,3657.1,0.00100001]
[1753404667977,9.85386312,3657.2,3657.1,0.00100001]
[1753404668378,9.85286312,3657.2,3657.1,0.00100001]
[1753404674055,8.96006312,3657.2,3657.1,0.00100001]
[1753404674552,9.85086312,3657.2,3657.1,0.00100001]
[1753404674771,2.87113227,3657.2,3657.1,0.00100001]
[1753404674975,4.6038,3657.2,3657.1,0.46730001]
[1753404675456,0.1368,3657.2,3657.1,0.46730001]
[1753404675650,4.6038,3657.2,3657.1,0.46730001]
[1753404677117,0.1368,3657.2,3657.1,0.91880001]
[1753404677455,0.1368,3657.2,3657.1,0.46730001]
[1753404677456,4.6038,3657.2,3657.1,0.46730001]
[1753404678016,0.002,3658.3,3657.2,14.669906]
[1753404678223,0.002,3658.5,3658.4,2.73343538]
[1753404678532,0.002,3658.5,3658.4,6.53363538]
[1753404678720,0.002,3658.5,3658.2,0.1368]
[1753404678926,0.002,3658.5,3658.2,0.4988]
[1753404679521,0.002,3658.5,3658.3,0.4988]
[1753404679928,0.002,3658.5,3658.1,0.4988]
[1753404680124,0.1368,3658.4,3658.1,0.4988]
[1753404681045,0.1368,3658.4,3658.2,0.4988]
[1753404681450,0.1368,3658.4,3658.3,0.4988]
[1753404682162,0.1368,3658.4,3657.9,0.1368]
[1753404682349,8.15347113,3658.3,3657.6,1.2537]
[1753404682665,0.1368,3658.0,3657.6,4.2537]
[1753404682853,4.5998,3658.0,3657.6,0.7549]
[1753404683033,0.4965,3657.9,3657.3,0.4988]
[1753404683367,0.1368,3657.7,3657.4,3.0]
[1753404683548,0.1368,3657.8,3657.5,4.38979873]
[1753404683754,0.1368,3657.8,3657.6,3.9503]
[1753404683933,0.1368,3657.8,3657.5,0.70544537]
[1753404684133,0.1368,3657.8,3657.6,0.4988]
[1753404684645,0.1368,3657.8,3657.7,0.4988]
[1753404684858,0.042,3659.9,3658.5,0.7849]
[1753404685056,0.042,3659.9,3659.8,3.28238974]
[1753404685260,0.042,3659.9,3659.8,1.4205]
[1753404685461,0.042,3659.9,3659.8,0.9217]
[1753404685629,0.042,3659.9,3659.7,0.1368]
[1753404685834,0.042,3659.9,3659.6,2.86932969]
[1753404686057,0.042,3659.9,3659.6,0.1368]
[1753404686387,0.042,3659.9,3659.7,0.4988]
[1753404686538,0.042,3659.9,3659.8,0.4988]
[1753404687361,0.042,3659.9,3659.8,4.49958974]
[1753404688069,0.042,3659.9,3659.8,1.7672]
[1753404688436,0.042,3659.9,3659.8,1.3157]
[1753404689995,0.042,3659.9,3659.6,0.4988]
[1753404690136,2.77433276,3659.9,3659.6,0.4988]
[1753404690333,2.77433276,3659.9,3659.1,6.28290714]
[1753404690334,1.05305022,3659.9,3659.1,0.8034]
[1753404690542,1.05305022,3659.9,3657.3,2.73421025]
[1753404690543,3.68935936,3659.8,3658.8,1.3022]
[1753404690755,2.73299406,3659.0,3658.6,0.4988]
[1753404690959,2.73299406,3659.0,3658.5,0.8045]
[1753404691240,2.73319706,3658.8,3658.5,0.8045]
[1753404691481,1.3143,3659.3,3658.6,0.4988]
[1753404691678,0.62347,3659.2,3658.6,0.4988]
[1753404691980,0.99740955,3661.9,3658.8,4.37413654]
[1753404692181,0.002,3662.0,3661.9,6.53532279]
[1753404692368,0.002,3662.6,3662.5,6.28037542]
[1753404692570,0.002,3662.6,3662.5,7.08487542]
[1753404692897,0.002,3662.6,3662.5,8.03517542]
[1753404697410,0.002,3662.6,3662.5,8.17197542]
[1753404697612,0.002,3662.6,3662.5,9.73982284]
[1753404699111,0.002,3662.6,3662.5,9.24102284]
[1753404699388,0.002,3662.6,3662.5,9.73982284]
[1753404699603,0.002,3662.6,3662.5,15.66221784]
[1753404699962,0.04,3662.9,3662.7,3.28022633]
[1753404700158,0.04,3662.9,3662.7,8.14784321]
[1753404700159,1e-08,3662.8,3662.7,8.14784321]
[1753404700459,1e-08,3662.8,3662.7,13.98094321]
[1753404701302,1e-08,3662.8,3662.7,6.23494321]
[1753404701612,1e-08,3662.8,3662.7,5.3776]
[1753404701784,1e-08,3662.8,3662.7,3.6356]
[1753404702488,1e-08,3662.8,3662.7,3.1368]
[1753404702818,1e-08,3662.8,3662.7,3.6356]
[1753404703308,1e-08,3662.8,3662.7,6.91582633]
[1753404703512,1e-08,3662.8,3662.7,13.5407317]
[1753404703712,1e-08,3662.8,3662.7,8.8057317]
[1753404703912,1e-08,3662.8,3662.7,13.5437317]
[1753404704146,1e-08,3662.8,3662.7,4.57520537]
[1753404704428,0.95690001,3662.8,3662.7,3.1368]
[1753404704587,0.95690001,3662.8,3662.7,0.1368]
[1753404704791,1e-08,3662.8,3662.7,0.1368]
[1753404708041,2.73040965,3662.5,3661.9,5.26399272]
[1753404708239,0.47370001,3662.8,3662.4,0.1368]
[1753404708431,1e-08,3662.8,3662.4,0.1368]
[1753404708630,2.73031751,3662.6,3662.4,0.1368]
[1753404709230,2.73017009,3662.8,3662.4,0.6117]
[1753404709406,1e-08,3662.8,3662.4,0.6117]
[1753404709601,2.73015839,3662.8,3662.4,0.1368]
[1753404709830,2.73023168,3662.7,3662.4,0.1368]
[1753404710242,2.73036134,3662.6,3662.4,0.1368]
[1753404710408,2.73037542,3662.5,3662.4,0.1368]
[1753404710609,2.73050404,3662.4,3662.2,0.1368]
[1753404710809,3.66555158,3662.4,3661.7,0.4749]
[1753404711042,3.99256755,3662.3,3661.9,0.1368]
[1753404711244,4.45396755,3662.3,3661.9,0.1368]
[1753404711448,2.73068629,3662.1,3661.9,0.1368]
[1753404712452,0.4614,3662.0,3660.7,2.73164585]
[1753404712614,0.7951,3661.4,3661.1,0.1368]
[1753404712818,3.80317921,3661.3,3661.2,0.25222867]
[1753404713112,3.80317921,3661.3,3660.8,0.1368]
[1753404713113,2.73149412,3661.0,3660.8,0.1368]
[1753404713314,2.73149412,3661.0,3660.9,0.2522436]
[1753404713531,3.20519412,3661.0,3660.9,0.2522436]
[1753404713734,3.66659412,3661.0,3660.9,0.2522436]
[1753404713933,0.9351,3661.0,3660.9,0.2522436]
[1753404714128,3.66659412,3661.0,3660.9,0.2522436]
[1753404715038,0.95740955,3665.3,3663.9,0.8209]
[1753404715212,0.87877328,3664.7,3664.2,6.27910867]
[1753404715415,0.136,3665.8,3664.2,6.27910867]
[1753404715615,0.136,3665.8,3664.2,11.42790867]
[1753404715918,0.136,3665.8,3664.2,12.36880867]
[1753404716120,1e-08,3664.3,3664.2,7.35680867]
[1753404716452,1e-08,3664.3,3664.2,13.49200837]
[1753404716937,0.04,3665.9,3664.2,13.49200837]
[1753404716938,1e-08,3664.9,3664.8,3.27866186]
[1753404717138,1e-08,3664.9,3664.8,12.08604847]
[1753404717340,1e-08,3664.9,3664.8,7.11546186]
[1753404717540,1e-08,3664.9,3664.8,12.87378483]
[1753404717948,1e-08,3664.9,3664.8,12.85482582]
[1753404718455,1e-08,3664.9,3664.8,12.84782582]
[1753404718654,1e-08,3664.9,3664.8,13.31382582]
[1753404719156,1e-08,3664.9,3664.8,12.83892582]
[1753404719329,1e-08,3664.9,3664.8,14.07112582]
[1753404720360,1e-08,3664.9,3664.8,8.61312582]
[1753404720558,1e-08,3664.9,3664.8,6.87140285]
[1753404720716,1e-08,3664.9,3664.8,12.103986]
[1753404721466,1e-08,3664.9,3664.8,12.102986]
[1753404721675,1e-08,3664.9,3664.8,6.100086]
[1753404721952,1e-08,3664.9,3664.8,3.39038315]
[1753404723430,1e-08,3664.9,3664.8,3.1368]
[1753404723633,0.46140001,3664.9,3664.8,0.1368]
[1753404724337,1.5448792,3664.9,3664.8,0.1368]
[1753404724545,1.69960001,3664.9,3663.1,0.7861]
[1753404724755,1.69960001,3664.9,3662.8,0.4749]
[1753404724756,2.72941343,3663.8,3662.8,0.4749]
[1753404724929,0.7645,3664.7,3662.8,0.4749]
[1753404724930,2.72955763,3663.6,3663.0,3.0]
[1753404725134,3.49405763,3663.6,3662.9,3.0]
[1753404725454,2.72964655,3663.5,3662.8,3.4749]